{"text_format":"3","workbook":"xlsx","n_sheets":2,"sheets":["كيفية استخدام هذا المصنف","دفتر الدرجات"],"not_rendered":{"defined_names":5},"read":"whole","date_system":"1900"}

{"sheet":"كيفية استخدام هذا المصنف","index":0,"n_rows":10,"n_cols":2,"rows_kept":10}
[null,"الإرشادات"]
[null,"استخدم ورقة عمل \"دفتر الدرجات\" لحساب الدرجات حيث يستحق كل واجب عددًا محددًا من النقاط. "]
[null,"الإرشادات: تأكد من حفظ نُسخ احتياطية من درجاتك."]
[null,"1. املأ اسم المدرسة ومعلومات الصف الدراسي وأسماء الطلاب وبطاقات هوية الطلاب لديك (اختياري).   "]
[null,"2. اضبط جدول الدرجات والمعدل التراكمي لمطابقة نظام تسجيل الدرجات النموذجي الذي تستخدمه."]
[null,"3. املأ أسماء الواجبات أو الاختبارات أو الامتحانات التي تبدأ من الخلية G7، إلى جانب النسبة المئوية التي تستحقها كل منها (على سبيل المثال \"النهائية\" و\"50٪\"). "]
[null,"4. املأ الدرجات لكل طالب في كل واجب أو اختبار. يتم حساب أعمدة \"الدرجة\" \"والدرجة بالأحرف\" \"والمعدل التراكمي\" تلقائيًا، لكن يمكنك تجاوزها إذا رغبت. الطريقة التي يتم بها حساب الدرجات، الدرجة المتوسطة والنهائية تعتبر غير مكتملة حتى يتم تسجيل جميع الدرجات فيها."]
[null,"استخدم أمر \"منطقة الطباعة\" على قائمة تخطيط الصفحة إذا كنت ترغب في تغيير المنطقة التي تتم طباعتها."]
[null,"الدرجة والدرجة بالأحرف والمعدل التراكمي تعتبر غير صالحة حتى يتم إكمال 100 ٪ من الاختبارات والواجبات. "]
[null,"أدخل كل واجب أو اختبار ونسبته المئوية من إجمالي الدرجات في الخلايا من G7 إلى W8."]

{"sheet":"دفتر الدرجات","index":1,"n_rows":20,"n_cols":23,"rows_kept":20,"merged":[[5,1,5,5],[6,1,6,3],[6,4,6,5],[7,1,8,3],[7,4,7,5],[8,4,8,5],[15,1,15,5],[16,1,16,2],[17,1,17,2],[18,1,18,2],[19,1,19,2]]}
[null,"اسم مدرستك"]
[]
[{"$nulls":6},"الدرجة",{"v":0,"d":"0%"},{"v":0.6,"d":"60%"},{"v":0.63,"d":"63%"},{"v":0.67,"d":"67%"},{"v":0.7,"d":"70%"},{"v":0.73,"d":"73%"},{"v":0.77,"d":"77%"},{"v":0.8,"d":"80%"},{"v":0.83,"d":"83%"},{"v":0.87,"d":"87%"},{"v":0.9,"d":"90%"},{"v":0.93,"d":"93%"},{"v":0.97,"d":"97%"}]
[{"$nulls":6},"الدرجة بالأحرف","و","D-","د","D+","C-","ج","C+","B-","ب","B+","A-","أ","A+"]
[{"$nulls":6},"المعدل التراكمي",0,0.67,1,1.33,1.67,2,2.33,2.67,3,3.33,3.67,4,4]
[null,"اسم المعلم"]
[null,"الصف الدراسي/المشروع",null,null,"اسم الواجب أو الاختبار"]
[null,"السنة/الفصل الدراسي/الربع",null,null,"النسبة المئوية (يجب أن يكون الإجمالي 100٪)"]
[{"$nulls":4},{"$f":"\"النسبة المئوية الإجمالية: \"&SUM(G8:W8)*100&\"%\"","v":"النسبة المئوية الإجمالية: 0%"}]
[null,"اسم الطالب","معرّف الطالب","الدرجة","الدرجة بالأحرف","المعدل التراكمي","العمود 6","العمود 7","العمود 8","العمود 9","العمود 10","العمود 11","العمود 12","العمود 13","العمود 14","العمود 15","العمود 16","العمود 17","العمود 18","العمود 19","العمود 20","العمود 21","العمود 22"]
[{"$nulls":3},{"$f":"(IF(SUM(الدرجات[[#This Row],[العمود 6]:[العمود 22]]),ROUND(SUMPRODUCT($G$8:$W$8,الدرجات[[#This Row],[العمود 6]:[العمود 22]]),2),\"\"))","v":""},{"$f":"IF(الدرجات[[#This Row],[الدرجة]]<>\"\",HLOOKUP(الدرجات[[#This Row],[الدرجة]],GradeTable,2),\"\")","v":""},{"$f":"IF(الدرجات[[#This Row],[الدرجة]]<>\"\",HLOOKUP(الدرجات[[#This Row],[الدرجة]],GradeTable,3),\"\")","v":""}]
[{"$nulls":3},{"$f":"(IF(SUM(الدرجات[[#This Row],[العمود 6]:[العمود 22]]),ROUND(SUMPRODUCT($G$8:$W$8,الدرجات[[#This Row],[العمود 6]:[العمود 22]]),2),\"\"))","v":""},{"$f":"IF(الدرجات[[#This Row],[الدرجة]]<>\"\",HLOOKUP(الدرجات[[#This Row],[الدرجة]],GradeTable,2),\"\")","v":""},{"$f":"IF(الدرجات[[#This Row],[الدرجة]]<>\"\",HLOOKUP(الدرجات[[#This Row],[الدرجة]],GradeTable,3),\"\")","v":""}]
[{"$nulls":3},{"$f":"(IF(SUM(الدرجات[[#This Row],[العمود 6]:[العمود 22]]),ROUND(SUMPRODUCT($G$8:$W$8,الدرجات[[#This Row],[العمود 6]:[العمود 22]]),2),\"\"))","v":""},{"$f":"IF(الدرجات[[#This Row],[الدرجة]]<>\"\",HLOOKUP(الدرجات[[#This Row],[الدرجة]],GradeTable,2),\"\")","v":""},{"$f":"IF(الدرجات[[#This Row],[الدرجة]]<>\"\",HLOOKUP(الدرجات[[#This Row],[الدرجة]],GradeTable,3),\"\")","v":""}]
[{"$nulls":3},{"$f":"(IF(SUM(الدرجات[[#This Row],[العمود 6]:[العمود 22]]),ROUND(SUMPRODUCT($G$8:$W$8,الدرجات[[#This Row],[العمود 6]:[العمود 22]]),2),\"\"))","v":""},{"$f":"IF(الدرجات[[#This Row],[الدرجة]]<>\"\",HLOOKUP(الدرجات[[#This Row],[الدرجة]],GradeTable,2),\"\")","v":""},{"$f":"IF(الدرجات[[#This Row],[الدرجة]]<>\"\",HLOOKUP(الدرجات[[#This Row],[الدرجة]],GradeTable,3),\"\")","v":""}]
[{"$nulls":3},{"$f":"(IF(SUM(الدرجات[[#This Row],[العمود 6]:[العمود 22]]),ROUND(SUMPRODUCT($G$8:$W$8,الدرجات[[#This Row],[العمود 6]:[العمود 22]]),2),\"\"))","v":""},{"$f":"IF(الدرجات[[#This Row],[الدرجة]]<>\"\",HLOOKUP(الدرجات[[#This Row],[الدرجة]],GradeTable,2),\"\")","v":""},{"$f":"IF(الدرجات[[#This Row],[الدرجة]]<>\"\",HLOOKUP(الدرجات[[#This Row],[الدرجة]],GradeTable,3),\"\")","v":""}]
[]
[null,"ملخص الصف الدراسي",null,"الدرجة","الدرجة بالأحرف","المعدل التراكمي","","","","","","","","","","",""]
[null," المتوسط",null,{"$f":"IFERROR(AVERAGE(الدرجات[[#All],[الدرجة]]),0)","v":{"v":0,"d":"0.0%"}},{"$f":"IFERROR(HLOOKUP(D18,GradeTable,2),\"\")","v":"و"},{"$f":"IFERROR(AVERAGE(الدرجات[[#All],[المعدل التراكمي]]),0)","v":0},"","","","","","","","","","","","","","","","",""]
[null," أعلى درجة",null,{"$f":"IFERROR(MAX(الدرجات[[#All],[الدرجة]]),0)","v":{"v":0,"d":"0.0%"}},{"$f":"IFERROR(HLOOKUP(D19,GradeTable,2),\"\")","v":"و"},{"$f":"IFERROR(MAX(الدرجات[[#All],[المعدل التراكمي]]),0)","v":0},"","","","","","","","","","","","","","","","",""]
[null," أقل درجة",null,{"$f":"IFERROR(MIN(الدرجات[[#All],[الدرجة]]),0)","v":{"v":0,"d":"0.0%"}},{"$f":"IFERROR(HLOOKUP(D20,GradeTable,2),\"\")","v":"و"},{"$f":"IFERROR(MIN(الدرجات[[#All],[المعدل التراكمي]]),0)","v":0},"","","","","","","","","","","","","","","","",""]